fUSD/lending_fUSD_20260622
["ID","MTS","AMOUNT","RATE_DAILY","PERIOD"]
[426035843,1782127842000,-500.0,0.00016438,2]
[426035845,1782127842000,-500.0,0.00016438,2]
[426035840,1782127842000,-500.0,0.00016438,2]
[426035844,1782127842000,-500.0,0.00016438,2]
[426035842,1782127842000,-500.0,0.00016438,2]
[426035848,1782127842000,-500.0,0.00016438,2]
[426035860,1782127842000,-330.1,0.00016716,2]
[426035859,1782127842000,-168.98,0.00016712,2]
[426035841,1782127842000,-500.0,0.00016438,2]
[426035871,1782127842000,-150.99,0.00017728,2]
[426035862,1782127842000,-201.0,0.00016841,3]
[426035849,1782127842000,-216.0,0.00016438,2]
[426035863,1782127842000,-1613.0535,0.00016887,2]
[426035861,1782127842000,-235.63,0.00016738,2]
[426035852,1782127842000,-311.0,0.00016438,2]
[426035855,1782127842000,-320.0,0.00016438,2]
[426035857,1782127842000,-151.0,0.00016438,2]
[426035850,1782127842000,-312.0,0.00016438,2]
[426035851,1782127842000,-238.94934171,0.00016438,2]
[426035858,1782127842000,-164.93,0.00016578,2]
[426035853,1782127842000,-150.0,0.00016438,2]
[426035940,1782127843000,-813.87396831,0.00019743,2]
[426035943,1782127843000,-10124.19515023,0.000198,2]
[426035939,1782127843000,-391.78062228,0.00019728,2]
[426035941,1782127843000,-200.0,0.00019773,2]
[426035935,1782127843000,-10124.19515023,0.000194,2]
[426035931,1782127843000,-10124.19515023,0.000193,2]
[426035933,1782127843000,-181.85,0.00019355,7]
[426035932,1782127843000,-500.0,0.00019353,2]
[426035937,1782127843000,-10124.19515023,0.000196,2]
[426035945,1782127843000,-184.51424214,0.000199,2]
[426035929,1782127843000,-151.0,0.00019178,2]
[426035942,1782127843000,-1119.41442965,0.000198,2]
[426035955,1782127843000,-826.0,0.0002,2]
[426035946,1782127843000,-500.0,0.00019933,2]
[426035944,1782127843000,-164.29860884,0.00019825,2]
[426035948,1782127843000,-752.4937536,0.0002,2]
[426035949,1782127843000,-1119.41442965,0.0002,2]
[426035956,1782127843000,-1115.0,0.0002,2]
[426035952,1782127843000,-400.0,0.0002,2]
[426035951,1782127843000,-186.565806,0.0002,2]
[426035950,1782127843000,-10124.19515023,0.0002,2]
[426035953,1782127843000,-180.0,0.0002,2]
[426035958,1782127843000,-166.0,0.0002,2]
[426035959,1782127843000,-154.0,0.0002,2]
[426035936,1782127843000,-1119.41442965,0.000196,2]
[426035947,1782127843000,-305.0,0.0002,2]
[426035938,1782127843000,-1934.38338736,0.00019627,2]
[426035966,1782127843000,-151.0,0.00020175,2]
[426035928,1782127843000,-268.70738278,0.00019178,2]
[426035954,1782127843000,-181.0,0.0002,2]
[426035906,1782127843000,-1798.80895522,0.00018531,2]
[426035910,1782127843000,-10124.19515023,0.000187,2]
[426035909,1782127843000,-204.4,0.000187,2]
[426035905,1782127843000,-569.04972633,0.000185,2]
[426035911,1782127843000,-569.04972633,0.000187,2]
[426035907,1782127843000,-1739.0,0.00018551,2]
[426035908,1782127843000,-1119.41442965,0.000187,2]
[426035914,1782127843000,-1119.41442965,0.000189,2]
[426035912,1782127843000,-627.14,0.000187,2]
[426035913,1782127843000,-500.0,0.00018789,2]
[426035916,1782127843000,-569.04972633,0.000189,2]
[426035918,1782127843000,-6031.0,0.00019009,5]
[426035926,1782127843000,-250.0,0.00019178,2]
[426035915,1782127843000,-10124.19515023,0.000189,2]
[426035927,1782127843000,-250.0,0.00019178,2]
[426035922,1782127843000,-10124.19515023,0.000191,2]
[426035925,1782127843000,-250.0,0.00019178,2]
[426035917,1782127843000,-170.15358353,0.00019,2]
[426035923,1782127843000,-569.04972633,0.000191,2]
[426035921,1782127843000,-1119.41442965,0.000191,2]
[426035920,1782127843000,-1865.36488656,0.00019079,2]
[426035919,1782127843000,-4821.0,0.00019009,5]
[426035924,1782127843000,-164.93,0.00019128,2]
[426035930,1782127843000,-1119.41442965,0.000193,2]
[426035934,1782127843000,-1119.41442965,0.000194,2]
[426035957,1782127843000,-166.0,0.0002,2]
[426035975,1782127843000,-151.0,0.00020175,2]
[426035963,1782127843000,-200.0,0.00020175,2]
[426035987,1782127843000,-151.0,0.00020175,2]
[426035992,1782127843000,-500.0,0.00020175,2]
[426035988,1782127843000,-327.98278615,0.00020175,2]
[426036005,1782127843000,-151.0,0.00020175,2]
[426035999,1782127843000,-201.93286098,0.00020175,2]
[426036002,1782127843000,-151.0,0.00020175,2]
[426036006,1782127843000,-500.0,0.00020175,2]
[426036009,1782127843000,-151.0,0.00020175,2]
[426035960,1782127843000,-202.0,0.0002,2]
[426036000,1782127843000,-1536.04360648,0.00020175,2]
[426036001,1782127843000,-500.0,0.00020175,2]
[426035998,1782127843000,-500.0,0.00020175,2]
[426035989,1782127843000,-1377.42282658,0.00020175,2]
[426036004,1782127843000,-500.0,0.00020175,2]
[426036007,1782127843000,-2005.9555727,0.00020175,2]
[426036012,1782127843000,-151.0,0.00020175,2]
[426036014,1782127843000,-695.39793187,0.00020175,2]
[426036010,1782127843000,-152.0,0.00020175,2]
[426036013,1782127843000,-500.0,0.00020175,2]
[426036017,1782127843000,-151.0,0.00020175,2]
[426036011,1782127843000,-1592.87721992,0.00020175,2]
[426036016,1782127843000,-151.0,0.00020175,2]
[426036015,1782127843000,-1651.81367706,0.00020175,2]
[426036020,1782127843000,-500.0,0.00020175,2]
[426036018,1782127843000,-152.0,0.00020175,2]
[426036019,1782127843000,-151.0,0.00020175,2]
[426035997,1782127843000,-151.0,0.00020175,2]
[426035990,1782127843000,-151.0,0.00020175,2]
[426036008,1782127843000,-847.53135692,0.00020175,2]
[426035995,1782127843000,-1481.2378076,0.00020175,2]
[426035962,1782127843000,-1513.05,0.0002,2]
[426035991,1782127843000,-151.0,0.00020175,2]
[426035971,1782127843000,-151.0,0.00020175,2]
[426035961,1782127843000,-672.0,0.0002,2]
[426035972,1782127843000,-1068.11,0.00020175,2]
[426035967,1782127843000,-358.19769023,0.00020175,2]
[426035970,1782127843000,-151.0,0.00020175,2]
[426035968,1782127843000,-1030.0,0.00020175,2]
[426035969,1782127843000,-157.57092906,0.00020175,2]
[426035974,1782127843000,-151.0,0.00020175,2]
[426035976,1782127843000,-1148.61238259,0.00020175,2]
[426035973,1782127843000,-1107.63007,0.00020175,2]
[426035965,1782127843000,-531.81699916,0.00020175,2]
[426035979,1782127843000,-578.20924308,0.00020175,2]
[426035980,1782127843000,-174.61919141,0.00020175,2]
[426035983,1782127843000,-1280.88388877,0.00020175,2]
[426035978,1782127843000,-151.0,0.00020175,2]
[426035981,1782127843000,-1235.18214925,0.00020175,2]
[426035982,1782127843000,-151.0,0.00020175,2]
[426035984,1782127843000,-1328.27659266,0.00020175,2]
[426035994,1782127843000,-500.0,0.00020175,2]
[426035985,1782127843000,-151.0,0.00020175,2]
[426035986,1782127843000,-500.0,0.00020175,2]
[426035977,1782127843000,-1191.11104074,0.00020175,2]
[426035993,1782127843000,-1428.38747117,0.00020175,2]
[426036052,1782127844000,-500.0,0.00020175,2]
[426036057,1782127844000,-500.0,0.00020175,2]
[426036058,1782127844000,-151.0,0.00020175,2]
[426036056,1782127844000,-152.0,0.00020175,2]
[426036053,1782127844000,-151.0,0.00020175,2]
[426036049,1782127844000,-151.0,0.00020175,2]
[426036050,1782127844000,-152.0,0.00020175,2]
[426036045,1782127844000,-151.0,0.00020175,2]
[426036061,1782127844000,-500.0,0.00020175,2]
[426036054,1782127844000,-500.0,0.00020175,2]
[426036059,1782127844000,-151.0,0.00020175,2]
[426036063,1782127844000,-269.6725767,0.00020175,2]
[426036062,1782127844000,-151.0,0.00020175,2]
[426036055,1782127844000,-151.0,0.00020175,2]
[426036065,1782127844000,-500.0,0.00020175,2]
[426036060,1782127844000,-152.0,0.00020175,2]
[426036075,1782127844000,-151.0,0.0002023,2]
[426036066,1782127844000,-151.0,0.00020175,2]
[426036074,1782127844000,-531.81699916,0.0002023,2]
[426036067,1782127844000,-152.0,0.00020175,2]
[426036068,1782127844000,-500.0,0.00020175,2]
[426036072,1782127844000,-10124.19515023,0.000202,2]
[426036064,1782127844000,-152.0,0.00020175,2]
[426036051,1782127844000,-151.0,0.00020175,2]
[426036092,1782127844000,-531.81699916,0.0002056,2]
[426036046,1782127844000,-2054.15682156,0.00020175,2]
[426036069,1782127844000,-152.0,0.00020175,2]
[426036033,1782127844000,-500.0,0.00020175,2]
[426036022,1782127844000,-1712.93078311,0.00020175,2]
[426036025,1782127844000,-151.0,0.00020175,2]
[426036021,1782127844000,-500.0,0.00020175,2]
[426036023,1782127844000,-151.0,0.00020175,2]
[426036024,1782127844000,-152.0,0.00020175,2]
[426036031,1782127844000,-151.0,0.00020175,2]
[426036028,1782127844000,-500.0,0.00020175,2]
[426036026,1782127844000,-500.0,0.00020175,2]
[426036027,1782127844000,-1776.30922209,0.00020175,2]
[426036034,1782127844000,-1842.0326633,0.00020175,2]
[426036039,1782127844000,-151.0,0.00020175,2]
[426036036,1782127844000,-1910.18787185,0.00020175,2]
[426036038,1782127844000,-500.0,0.00020175,2]
[426036037,1782127844000,-151.0,0.00020175,2]
[426036035,1782127844000,-152.0,0.00020175,2]
[426036043,1782127844000,-152.0,0.00020175,2]
[426036041,1782127844000,-1980.8648231,0.00020175,2]
[426036042,1782127844000,-500.0,0.00020175,2]
[426036040,1782127844000,-500.0,0.00020175,2]
[426036044,1782127844000,-151.0,0.00020175,2]
[426036048,1782127844000,-500.0,0.00020175,2]
[426036047,1782127844000,-500.0,0.00020175,2]
[426036073,1782127844000,-627.14,0.000202,2]
[426036100,1782127844000,-531.81699916,0.0002067,2]
[426036071,1782127844000,-752.4937536,0.000202,2]
[426036104,1782127844000,-157.5709291,0.00020723,2]
[426036099,1782127844000,-151.0,0.00020615,2]
[426036098,1782127844000,-531.81699916,0.00020615,2]
[426036102,1782127844000,-200.0,0.00020723,2]
[426036110,1782127844000,-2080.17592889,0.00020723,2]
[426036107,1782127844000,-151.0,0.00020723,2]
[426036111,1782127844000,-847.53135692,0.00020723,2]
[426036116,1782127844000,-752.4937536,0.000208,2]
[426036108,1782127844000,-151.0,0.00020723,2]
[426036109,1782127844000,-209.40437684,0.00020723,2]
[426036103,1782127844000,-358.19769023,0.00020723,2]
[426036112,1782127844000,-531.81699916,0.00020725,2]
[426036113,1782127844000,-151.0,0.00020725,2]
[426036117,1782127844000,-785.0,0.00020939,2]
[426036124,1782127844000,-1115.0,0.00021,2]
[426036123,1782127844000,-826.0,0.00021,2]
[426036118,1782127844000,-151.0,0.00020997,2]
[426036119,1782127844000,-305.0,0.00021,2]
[426036125,1782127844000,-166.0,0.00021,2]
[426036120,1782127844000,-1055.92431775,0.00021,2]
[426036122,1782127844000,-181.0,0.00021,2]
[426036070,1782127844000,-152.0,0.00020175,2]
[426036114,1782127844000,-531.81699924,0.0002078,2]
[426036101,1782127844000,-151.0,0.0002067,2]
[426036115,1782127844000,-151.0,0.0002078,2]
[426036106,1782127844000,-181.08010149,0.00020723,2]
[426036076,1782127844000,-821.26435144,0.00020274,2]
[426036121,1782127844000,-180.0,0.00021,2]
[426036078,1782127844000,-151.0,0.00020285,2]
[426036079,1782127844000,-531.81699916,0.0002034,2]
[426036077,1782127844000,-531.81699916,0.00020285,2]
[426036083,1782127844000,-151.0,0.00020395,2]
[426036085,1782127844000,-10124.19515023,0.000204,2]
[426036080,1782127844000,-151.0,0.0002034,2]
[426036082,1782127844000,-531.81699916,0.00020395,2]
[426036084,1782127844000,-752.4937536,0.000204,2]
[426036086,1782127844000,-151.0,0.00020449,2]
[426036081,1782127844000,-436.1,0.00020381,2]
[426036088,1782127844000,-151.0,0.0002045,2]
[426036097,1782127844000,-785.0,0.00020606,2]
[426036089,1782127844000,-531.81699916,0.00020505,2]
[426036105,1782127844000,-151.0,0.00020723,2]
[426036093,1782127844000,-151.0,0.0002056,2]
[426036095,1782127844000,-752.4937536,0.000206,2]
[426036096,1782127844000,-10124.19515023,0.000206,2]
[426036090,1782127844000,-151.0,0.00020505,2]
[426036091,1782127844000,-499.45360619,0.00020531,2]
[426036087,1782127844000,-531.81699916,0.0002045,2]
[426036094,1782127844000,-837.26431755,0.00020565,2]
[426036167,1782127845000,-847.53135692,0.00021819,2]
[426036156,1782127845000,-1055.92431775,0.000216,2]
[426036155,1782127845000,-151.0,0.00021545,2]
[426036153,1782127845000,-2100.0,0.00021528,2]
[426036159,1782127845000,-200.0,0.00021819,2]
[426036154,1782127845000,-750.0,0.00021528,7]
[426036158,1782127845000,-1513.05,0.00021612,2]
[426036161,1782127845000,-151.0,0.00021819,2]
[426036160,1782127845000,-358.19769023,0.00021819,2]
[426036162,1782127845000,-194.72792766,0.00021819,2]
[426036174,1782127845000,-200.0,0.00021918,2]
[426036163,1782127845000,-151.0,0.00021819,2]
[426036168,1782127845000,-1055.92431775,0.000219,2]
[426036164,1782127845000,-151.0,0.00021819,2]
[426036165,1782127845000,-225.18697532,0.00021819,2]
[426036169,1782127845000,-5000.0,0.00021918,2]
[426036173,1782127845000,-200.0,0.00021918,2]
[426036171,1782127845000,-200.0,0.00021918,2]
[426036176,1782127845000,-305.0,0.00022,2]
[426036178,1782127845000,-450.0,0.00022,2]
[426036177,1782127845000,-1779.0,0.00022,2]
[426036157,1782127845000,-785.0,0.00021603,2]
[426036166,1782127845000,-2236.95670847,0.00021819,2]
[426036148,1782127845000,-2072.92,0.00021273,2]
[426036127,1782127845000,-157.94528994,0.00021,2]
[426036152,1782127845000,-200.0,0.00021506,2]
[426036126,1782127845000,-166.0,0.00021,2]
[426036170,1782127845000,-171.65,0.00021918,2]
[426036133,1782127845000,-1368.605,0.00021234,2]
[426036132,1782127845000,-388.0,0.00021234,2]
[426036134,1782127845000,-1229.25,0.00021234,2]
[426036128,1782127845000,-202.0,0.00021,2]
[426036130,1782127845000,-1055.92431775,0.000212,2]
[426036135,1782127845000,-3561.0,0.00021234,2]
[426036131,1782127845000,-1279.283,0.00021234,2]
[426036129,1782127845000,-672.0,0.00021,2]
[426036136,1782127845000,-785.0,0.00021271,2]
[426036150,1782127845000,-2000.0,0.00021375,7]
[426036137,1782127845000,-200.0,0.00021271,2]
[426036141,1782127845000,-151.0,0.00021271,2]
[426036139,1782127845000,-151.0,0.00021271,2]
[426036142,1782127845000,-151.0,0.00021271,2]
[426036143,1782127845000,-217.15233878,0.00021271,2]
[426036138,1782127845000,-358.19769023,0.00021271,2]
[426036140,1782127845000,-187.78006524,0.00021271,2]
[426036147,1782127845000,-656.17,0.00021273,2]
[426036144,1782127845000,-2157.14243826,0.00021271,2]
[426036146,1782127845000,-3808.8,0.00021273,2]
[426036151,1782127845000,-1055.92431775,0.000214,2]
[426036149,1782127845000,-45618.45,0.00021273,2]
[426036145,1782127845000,-847.53135692,0.00021271,2]
[426036172,1782127845000,-200.0,0.00021918,2]
[426036195,1782127845000,-151.0,0.00022367,2]
[426036179,1782127845000,-180.0,0.00022,2]
[426036209,1782127845000,-200.0,0.00022658,2]
[426036213,1782127845000,-161.9,0.00022878,2]
[426036175,1782127845000,-785.0,0.00021936,2]
[426036210,1782127845000,-1055.92431775,0.000227,2]
[426036214,1782127845000,-161.9,0.00022878,2]
[426036215,1782127845000,-161.9,0.00022878,2]
[426036217,1782127845000,-161.9,0.00022878,2]
[426036221,1782127845000,-599.60298507,0.00022914,2]
[426036216,1782127845000,-161.9,0.00022878,2]
[426036218,1782127845000,-161.9,0.00022878,2]
[426036219,1782127845000,-161.9,0.00022878,2]
[426036223,1782127845000,-200.0,0.00022915,2]
[426036220,1782127845000,-161.9,0.00022878,2]
[426036224,1782127845000,-358.19769023,0.00022915,2]
[426036222,1782127845000,-721.12765534,0.00022914,2]
[426036226,1782127845000,-209.40437684,0.00022915,2]
[426036225,1782127845000,-151.0,0.00022915,2]
[426036227,1782127845000,-151.0,0.00022915,2]
[426036230,1782127845000,-2405.55389863,0.00022915,2]
[426036229,1782127845000,-151.0,0.00022915,2]
[426036231,1782127845000,-847.53135692,0.00022915,2]
[426036228,1782127845000,-242.15909246,0.00022915,2]
[426036232,1782127845000,-785.0,0.00022933,2]
[426036212,1782127845000,-161.9,0.00022878,2]
[426036207,1782127845000,-151.0,0.00022641,2]
[426036204,1782127845000,-768.27,0.00022466,2]
[426036203,1782127845000,-1723.43,0.00022466,2]
[426036182,1782127845000,-1115.0,0.00022,2]
[426036184,1782127845000,-166.0,0.00022,2]
[426036180,1782127845000,-181.0,0.00022,2]
[426036181,1782127845000,-826.0,0.00022,2]
[426036183,1782127845000,-166.0,0.00022,2]
[426036186,1782127845000,-202.0,0.00022,2]
[426036189,1782127845000,-1055.92431775,0.000221,2]
[426036202,1782127845000,-1657.66,0.00022466,2]
[426036187,1782127845000,-672.0,0.00022,2]
[426036188,1782127845000,-151.0,0.00022093,2]
[426036185,1782127845000,-803.53,0.00022,2]
[426036192,1782127845000,-436.1,0.00022353,2]
[426036190,1782127845000,-785.0,0.00022268,2]
[426036194,1782127845000,-358.19769023,0.00022367,2]
[426036191,1782127845000,-1055.92431775,0.000223,2]
[426036205,1782127845000,-1055.92431775,0.000225,2]
[426036211,1782127845000,-236.31465493,0.0002285,2]
[426036198,1782127845000,-151.0,0.00022367,2]
[426036200,1782127845000,-2319.72410669,0.00022367,2]
[426036206,1782127845000,-785.0,0.000226,2]
[426036199,1782127845000,-233.5188934,0.00022367,2]
[426036193,1782127845000,-200.0,0.00022367,2]
[426036197,1782127845000,-151.0,0.00022367,2]
[426036196,1782127845000,-201.93286098,0.00022367,2]
[426036201,1782127845000,-847.53135692,0.00022367,2]
[426036263,1782127846000,-785.0,0.0002393,2]
[426036262,1782127846000,-785.0,0.00023598,2]
[426036268,1782127846000,-826.0,0.00024,2]
[426036259,1782127846000,-2230.775,0.000235,4]
[426036265,1782127846000,-500.0,0.00024,2]
[426036260,1782127846000,-179.366,0.000235,4]
[426036264,1782127846000,-305.0,0.00024,2]
[426036269,1782127846000,-1115.0,0.00024,2]
[426036267,1782127846000,-181.0,0.00024,2]
[426036271,1782127846000,-166.0,0.00024,2]
[426036266,1782127846000,-180.0,0.00024,2]
[426036281,1782127846000,-847.53135692,0.00024011,2]
[426036277,1782127846000,-225.18697532,0.00024011,2]
[426036275,1782127846000,-151.0,0.00024011,2]
[426036273,1782127846000,-672.0,0.00024,2]
[426036272,1782127846000,-202.0,0.00024,2]
[426036274,1782127846000,-358.19769023,0.00024011,2]
[426036276,1782127846000,-200.0,0.00024011,2]
[426036279,1782127846000,-260.4103811,0.00024011,2]
[426036278,1782127846000,-151.0,0.00024011,2]
[426036280,1782127846000,-2586.85809042,0.00024011,2]
[426036270,1782127846000,-166.0,0.00024,2]
[426036253,1782127846000,-200.0,0.00023463,2]
[426036282,1782127846000,-200.0,0.00024167,2]
[426036250,1782127846000,-500.0,0.00023452,2]
[426036234,1782127846000,-1055.92431775,0.00023,2]
[426036233,1782127846000,-305.0,0.00023,2]
[426036235,1782127846000,-180.0,0.00023,2]
[426036239,1782127846000,-166.0,0.00023,2]
[426036237,1782127846000,-826.0,0.00023,2]
[426036238,1782127846000,-1115.0,0.00023,2]
[426036236,1782127846000,-181.0,0.00023,2]
[426036240,1782127846000,-166.0,0.00023,2]
[426036241,1782127846000,-202.0,0.00023,2]
[426036244,1782127846000,-1513.05,0.00023223,7]
[426036242,1782127846000,-672.0,0.00023,2]
[426036243,1782127846000,-151.0,0.00023189,2]
[426036245,1782127846000,-150.0,0.0002326,21]
[426036246,1782127846000,-785.0,0.00023265,2]
[426036248,1782127846000,-200.0,0.00023374,2]
[426036247,1782127846000,-837.26431755,0.00023343,2]
[426036258,1782127846000,-847.53135692,0.00023463,2]
[426036257,1782127846000,-2494.55939288,0.00023463,2]
[426036255,1782127846000,-151.0,0.00023463,2]
[426036252,1782127846000,-151.0,0.00023463,2]
[426036251,1782127846000,-358.19769023,0.00023463,2]
[426036249,1782127846000,-200.0,0.00023413,2]
[426036254,1782127846000,-217.15233878,0.00023463,2]
[426036256,1782127846000,-251.11897888,0.00023463,2]
[426036285,1782127846000,-1360.0,0.00024234,2]
[426036261,1782127846000,-226.97211214,0.00023561,7]
[426036286,1782127846000,-1229.0,0.00024234,2]
[426036314,1782127846000,-500.0,0.00024658,3]
[426036317,1782127846000,-500.0,0.00024658,3]
[426036316,1782127846000,-500.0,0.00024658,3]
[426036315,1782127846000,-500.0,0.00024658,3]
[426036319,1782127846000,-500.0,0.00024658,3]
[426036320,1782127846000,-500.0,0.00024658,3]
[426036318,1782127846000,-500.0,0.00024658,3]
[426036322,1782127846000,-494.58565803,0.00024658,3]
[426036323,1782127846000,-1513.05,0.00024835,7]
[426036324,1782127846000,-627.14,0.000249,7]
[426036325,1782127846000,-1784.25,0.00024904,2]
[426036326,1782127846000,-200.0,0.00024922,2]
[426036327,1782127846000,-785.0,0.00024927,2]
[426036329,1782127846000,-192.91209571,0.00025,2]
[426036330,1782127846000,-187.58537308,0.00025,2]
[426036333,1782127846000,-183.78520518,0.00025,2]
[426036332,1782127846000,-1118.86447896,0.00025,2]
[426036331,1782127846000,-843.18926434,0.00025,2]
[426036328,1782127846000,-309.0,0.00025,2]
[426036336,1782127846000,-681.73097188,0.00025,2]
[426036335,1782127846000,-207.23602648,0.00025,2]
[426036334,1782127846000,-178.70946919,0.00025,2]
[426036284,1782127846000,-383.0,0.00024234,2]
[426036311,1782127846000,-500.0,0.00024658,3]
[426036310,1782127846000,-500.0,0.00024658,3]
[426036321,1782127846000,-500.0,0.00024658,3]
[426036309,1782127846000,-500.0,0.00024658,3]
[426036312,1782127846000,-500.0,0.00024658,3]
[426036283,1782127846000,-1276.0,0.00024234,2]
[426036287,1782127846000,-3561.0,0.00024234,2]
[426036292,1782127846000,-358.19769023,0.00024559,2]
[426036291,1782127846000,-150.0,0.00024333,2]
[426036289,1782127846000,-405.1602211,0.00024284,2]
[426036290,1782127846000,-436.1,0.00024324,2]
[426036294,1782127846000,-200.0,0.00024559,2]
[426036293,1782127846000,-151.0,0.00024559,2]
[426036295,1782127846000,-233.5188934,0.00024559,2]
[426036296,1782127846000,-151.0,0.00024559,2]
[426036297,1782127846000,-270.0455652,0.00024559,2]
[426036288,1782127846000,-785.0,0.00024262,2]
[426036300,1782127846000,-785.0,0.00024595,2]
[426036301,1782127846000,-803.53,0.00024621,7]
[426036302,1782127846000,-171.64,0.00024658,8]
[426036299,1782127846000,-847.53135692,0.00024559,2]
[426036303,1782127846000,-839.14,0.00024658,2]
[426036304,1782127846000,-158.843375,0.00024658,2]
[426036306,1782127846000,-151.0,0.00024658,2]
[426036305,1782127846000,-1000.0,0.00024658,2]
[426036307,1782127846000,-151.0,0.00024658,2]
[426036308,1782127846000,-220.769833,0.00024658,2]
[426036298,1782127846000,-2682.57183977,0.00024559,2]
[426036371,1782127847000,-172.8233428,0.0002545,2]
[426036374,1782127847000,-184.31693168,0.0002545,2]
[426036367,1782127847000,-185.34526819,0.00025449,2]
[426036362,1782127847000,-177.31819053,0.00025449,2]
[426036370,1782127847000,-160.5356423,0.0002545,2]
[426036363,1782127847000,-189.0644506,0.00025449,2]
[426036366,1782127847000,-195.16183989,0.00025449,2]
[426036372,1782127847000,-173.69367037,0.0002545,2]
[426036368,1782127847000,-152.64564695,0.0002545,2]
[426036375,1782127847000,-171.20767822,0.0002545,2]
[426036369,1782127847000,-166.64057669,0.0002545,2]
[426036377,1782127847000,-175.55783824,0.0002545,2]
[426036383,1782127847000,-621.78829552,0.00025653,2]
[426036376,1782127847000,-166.20179216,0.0002545,2]
[426036378,1782127847000,-218.55083892,0.0002545,2]
[426036379,1782127847000,-692.27287416,0.0002545,2]
[426036382,1782127847000,-785.0,0.00025592,2]
[426036381,1782127847000,-164.8907304,0.0002545,2]
[426036380,1782127847000,-159.54773013,0.0002545,2]
[426036384,1782127847000,-747.80937859,0.00025653,2]
[426036388,1782127847000,-251.11897888,0.00025655,2]
[426036386,1782127847000,-183.45121984,0.00025655,2]
[426036385,1782127847000,-358.19769023,0.00025655,2]
[426036373,1782127847000,-158.45858651,0.0002545,2]
[426036364,1782127847000,-190.37408506,0.00025449,2]
[426036339,1782127847000,-964.36,0.00025067,2]
[426036358,1782127847000,-182.11056311,0.00025448,2]
[426036390,1782127847000,-290.3986294,0.00025655,2]
[426036338,1782127847000,-208.8,0.00025014,2]
[426036337,1782127847000,-208.8,0.00025014,2]
[426036340,1782127847000,-358.19769023,0.00025107,2]
[426036342,1782127847000,-200.0,0.00025107,2]
[426036344,1782127847000,-151.0,0.00025107,2]
[426036343,1782127847000,-242.15909246,0.00025107,2]
[426036341,1782127847000,-151.0,0.00025107,2]
[426036346,1782127847000,-2781.82699784,0.00025107,2]
[426036345,1782127847000,-280.03725111,0.00025107,2]
[426036350,1782127847000,-441.0,0.00025131,2]
[426036365,1782127847000,-169.28038123,0.00025449,2]
[426036348,1782127847000,-407.0,0.00025126,2]
[426036349,1782127847000,-447.0,0.00025131,2]
[426036352,1782127847000,-230.64060294,0.00025259,2]
[426036353,1782127847000,-785.0,0.00025259,2]
[426036351,1782127847000,-200.0,0.00025241,2]
[426036354,1782127847000,-206.0,0.00025416,2]
[426036355,1782127847000,-1728.99139748,0.0002544,7]
[426036356,1782127847000,-194.99923137,0.00025448,2]
[426036360,1782127847000,-184.26468098,0.00025448,2]
[426036357,1782127847000,-158.12530465,0.00025448,2]
[426036361,1782127847000,-204.16758155,0.00025448,2]
[426036359,1782127847000,-160.91673313,0.00025448,2]
[426036347,1782127847000,-847.53135692,0.00025107,2]
[426036387,1782127847000,-200.0,0.00025655,2]
[426036394,1782127847000,-184.19781069,0.00025752,2]
[426036391,1782127847000,-2884.75459676,0.00025655,2]